[Event "Titled Tuesday Blitz December 27 Late 2022"]
[White "Slade, Theodore"]
[Black "Grigoriants, Sergey"]
[WhiteFideId "426547"]
[BlackFideId "4130804"]
[WhiteElo "1995"]
[BlackElo "2562"]
[Result "0-1"]
[Round "02"]
[TimeControl "180+2"]
[Date "2022.12.27"]
[WhiteClock "0:00:21"]
[BlackClock "0:00:45"]

1. d4 {[%clk 0:03:00]}  Nf6 {[%clk 0:02:56]} 2. c4 {[%clk 0:03:00]}  e6 {[%clk 0:02:54]} 3. g3 {[%clk 0:03:01]}  c5 {[%clk 0:02:49]} 4. d5 {[%clk 0:03:01]}  exd5 {[%clk 0:02:49]} 5. cxd5 {[%clk 0:03:02]}  d6 {[%clk 0:02:50]} 6. Nc3 {[%clk 0:03:02]}  g6 {[%clk 0:02:51]} 7. Bg2 {[%clk 0:03:03]}  Bg7 {[%clk 0:02:51]} 8. Nf3 {[%clk 0:03:04]}  O-O {[%clk 0:02:52]} 9. O-O {[%clk 0:03:04]}  Re8 {[%clk 0:02:50]} 10. Bf4 {[%clk 0:03:05]}  Nh5 {[%clk 0:02:49]} 11. Bg5 {[%clk 0:03:04]}  Qd7 {[%clk 0:02:50]} 12. a4 {[%clk 0:02:55]}  h6 {[%clk 0:02:46]} 13. Bd2 {[%clk 0:02:53]}  Na6 {[%clk 0:02:44]} 14. e4 {[%clk 0:02:44]}  Nb4 {[%clk 0:02:43]} 15. Be3 {[%clk 0:02:39]}  b6 {[%clk 0:02:41]} 16. Nd2 {[%clk 0:02:37]}  Ba6 {[%clk 0:02:40]} 17. Re1 {[%clk 0:02:35]}  Nd3 {[%clk 0:02:39]} 18. Bf1 {[%clk 0:02:27]}  Nf6 {[%clk 0:02:27]} 19. Qb1 {[%clk 0:02:12]}  c4 {[%clk 0:02:18]} 20. Bxd3 {[%clk 0:02:11]}  cxd3 {[%clk 0:02:18]} 21. b4 {[%clk 0:01:47]}  Qh3 {[%clk 0:02:06]} 22. Ra3 {[%clk 0:00:47]}  Ng4 {[%clk 0:02:00]} 23. Nf3 {[%clk 0:00:44]}  Rac8 {[%clk 0:01:47]} 24. Rc1 {[%clk 0:00:36]}  d2 {[%clk 0:01:04]} 25. Bxd2 {[%clk 0:00:28]}  Bd4 {[%clk 0:00:46]} 26. Nd1 {[%clk 0:00:21]}  Qf1# {[%clk 0:00:45]} 0-1


[Site "https://www.chess.com"]

[Event "Titled Tuesday Blitz December 27 Late 2022"]
[White "Sourath Biswas"]
[Black "Makarian, Rudik"]
[WhiteFideId "35091484"]
[BlackFideId "44105681"]
[WhiteElo "2281"]
[BlackElo "2545"]
[Result "1-0"]
[Round "02"]
[TimeControl "180+2"]
[Date "2022.12.27"]
[WhiteClock "0:00:23"]
[BlackClock "0:00:01"]

1. d4 {[%clk 0:02:55]}  Nf6 {[%clk 0:03:00]} 2. Bf4 {[%clk 0:02:54]}  c5 {[%clk 0:02:59]} 3. e3 {[%clk 0:02:51]}  Nd5 {[%clk 0:02:58]} 4. Bg3 {[%clk 0:02:51]}  Qb6 {[%clk 0:02:58]} 5. c4 {[%clk 0:02:52]}  Qxb2 {[%clk 0:02:44]} 6. cxd5 {[%clk 0:02:51]}  Qxa1 {[%clk 0:02:40]} 7. Qc2 {[%clk 0:02:49]}  Na6 {[%clk 0:02:14]} 8. Bxa6 {[%clk 0:02:47]}  bxa6 {[%clk 0:02:14]} 9. Nf3 {[%clk 0:02:05]}  d6 {[%clk 0:02:11]} 10. O-O {[%clk 0:00:59]}  Rb8 {[%clk 0:02:09]} 11. dxc5 {[%clk 0:00:50]}  Qb2 {[%clk 0:02:09]} 12. Qa4+ {[%clk 0:00:50]}  Qb5 {[%clk 0:02:09]} 13. Qc2 {[%clk 0:00:40]}  Bd7 {[%clk 0:00:51]} 14. Nd4 {[%clk 0:00:36]}  Qb2 {[%clk 0:00:50]} 15. Qe4 {[%clk 0:00:37]}  dxc5 {[%clk 0:00:17]} 16. Bxb8 {[%clk 0:00:36]}  Qxb8 {[%clk 0:00:16]} 17. Nb3 {[%clk 0:00:30]}  e6 {[%clk 0:00:12]} 18. Nc3 {[%clk 0:00:30]}  Be7 {[%clk 0:00:10]} 19. dxe6 {[%clk 0:00:24]}  Bxe6 {[%clk 0:00:10]} 20. Nxc5 {[%clk 0:00:25]}  Bxc5 {[%clk 0:00:04]} 21. Qc6+ {[%clk 0:00:25]}  Bd7 {[%clk 0:00:03]} 22. Qxc5 {[%clk 0:00:26]}  Qc8 {[%clk 0:00:03]} 23. Qe5+ {[%clk 0:00:25]}  Be6 {[%clk 0:00:01]} 24. Qxg7 {[%clk 0:00:25]}  Ke7 {[%clk 0:00:01]} 25. Ne4 {[%clk 0:00:24]}  Qc4 {[%clk 0:00:01]} 26. Qf6+ {[%clk 0:00:23]}  Kd7 {[%clk 0:00:01]} 27. Rd1+ {[%clk 0:00:23]}  Kc7 {[%clk 0:00:01]} 28. Qe5+ {[%clk 0:00:22]}  Kb7 {[%clk 0:00:01]} 29. Nd6+ {[%clk 0:00:23]} 1-0


[Site "https://www.chess.com"]

[Event "Titled Tuesday Blitz December 27 Late 2022"]
[White "Sreyas Payyappat"]
[Black "Gritsenko, Nikolai"]
[WhiteFideId "46674969"]
[BlackFideId "14112493"]
[WhiteElo "2076"]
[BlackElo "2309"]
[Result "0-1"]
[Round "02"]
[TimeControl "180+2"]
[Date "2022.12.27"]
[WhiteClock "0:00:18"]
[BlackClock "0:00:13"]

1. e4 {[%clk 0:03:00]}  d5 {[%clk 0:02:58]} 2. exd5 {[%clk 0:03:00]}  Nf6 {[%clk 0:02:59]} 3. d4 {[%clk 0:03:01]}  Nxd5 {[%clk 0:02:59]} 4. c4 {[%clk 0:03:01]}  Nb6 {[%clk 0:02:59]} 5. Nf3 {[%clk 0:03:00]}  g6 {[%clk 0:02:58]} 6. b3 {[%clk 0:02:59]}  Bg7 {[%clk 0:02:58]} 7. Bb2 {[%clk 0:02:59]}  O-O {[%clk 0:02:56]} 8. Nc3 {[%clk 0:02:58]}  Bg4 {[%clk 0:02:55]} 9. Be2 {[%clk 0:02:54]}  Nc6 {[%clk 0:02:38]} 10. d5 {[%clk 0:02:51]}  Bxf3 {[%clk 0:02:38]} 11. Bxf3 {[%clk 0:02:52]}  Nd4 {[%clk 0:02:31]} 12. O-O {[%clk 0:02:48]}  c5 {[%clk 0:02:24]} 13. Rb1 {[%clk 0:02:44]}  Nc8 {[%clk 0:01:55]} 14. g3 {[%clk 0:02:40]}  Nd6 {[%clk 0:01:52]} 15. Bg2 {[%clk 0:02:38]}  Re8 {[%clk 0:01:47]} 16. Ne2 {[%clk 0:02:37]}  Nxe2+ {[%clk 0:01:45]} 17. Qxe2 {[%clk 0:02:36]}  Bxb2 {[%clk 0:01:44]} 18. Qxb2 {[%clk 0:02:33]}  a6 {[%clk 0:01:40]} 19. Rbd1 {[%clk 0:02:31]}  b5 {[%clk 0:01:39]} 20. Qc2 {[%clk 0:02:27]}  bxc4 {[%clk 0:01:32]} 21. bxc4 {[%clk 0:02:28]}  Rb8 {[%clk 0:01:28]} 22. Rb1 {[%clk 0:02:20]}  Qa5 {[%clk 0:01:25]} 23. Bf3 {[%clk 0:02:14]}  Rb4 {[%clk 0:01:22]} 24. Rxb4 {[%clk 0:02:13]}  Qxb4 {[%clk 0:01:19]} 25. Rb1 {[%clk 0:02:11]}  Qxc4 {[%clk 0:01:16]} 26. Qxc4 {[%clk 0:02:10]}  Nxc4 {[%clk 0:01:16]} 27. Be2 {[%clk 0:02:11]}  Nd6 {[%clk 0:01:15]} 28. Bxa6 {[%clk 0:02:08]}  Ra8 {[%clk 0:01:13]} 29. Rb6 {[%clk 0:02:05]}  c4 {[%clk 0:01:09]} 30. Rc6 {[%clk 0:02:03]}  c3 {[%clk 0:01:07]} 31. Bd3 {[%clk 0:01:55]}  Ra3 {[%clk 0:00:46]} 32. Bc2 {[%clk 0:01:34]}  Rxa2 {[%clk 0:00:42]} 33. Rxc3 {[%clk 0:01:33]}  Ra1+ {[%clk 0:00:41]} 34. Kg2 {[%clk 0:01:28]}  Rc1 {[%clk 0:00:41]} 35. Kf3 {[%clk 0:01:21]}  Kg7 {[%clk 0:00:37]} 36. Ke3 {[%clk 0:01:20]}  g5 {[%clk 0:00:32]} 37. Kd2 {[%clk 0:01:17]}  Rh1 {[%clk 0:00:31]} 38. Ke2 {[%clk 0:01:03]}  Rxh2 {[%clk 0:00:29]} 39. Rc7 {[%clk 0:00:58]}  Kf6 {[%clk 0:00:27]} 40. Kf1 {[%clk 0:00:50]}  Rh1+ {[%clk 0:00:26]} 41. Kg2 {[%clk 0:00:48]}  Rc1 {[%clk 0:00:26]} 42. Rc6 {[%clk 0:00:48]}  h5 {[%clk 0:00:25]} 43. Bb3 {[%clk 0:00:40]}  Rb1 {[%clk 0:00:24]} 44. Bc2 {[%clk 0:00:38]}  Rb2 {[%clk 0:00:24]} 45. Kf3 {[%clk 0:00:33]}  Ke5 {[%clk 0:00:22]} 46. Rc7 {[%clk 0:00:19]}  Kxd5 {[%clk 0:00:20]} 47. Ba4 {[%clk 0:00:18]}  Ke6 {[%clk 0:00:19]} 48. Bd7+ {[%clk 0:00:18]}  Kf6 {[%clk 0:00:19]} 49. Rc5 {[%clk 0:00:18]}  Rb3+ {[%clk 0:00:17]} 50. Kg2 {[%clk 0:00:18]}  Rb4 {[%clk 0:00:17]} 51. Kh3 {[%clk 0:00:17]}  Rc4 {[%clk 0:00:16]} 52. Rxc4 {[%clk 0:00:16]}  Nxc4 {[%clk 0:00:16]} 53. f4 {[%clk 0:00:16]}  Nd6 {[%clk 0:00:12]} 54. fxg5+ {[%clk 0:00:16]}  Kxg5 {[%clk 0:00:12]} 55. g4 {[%clk 0:00:15]}  hxg4+ {[%clk 0:00:10]} 56. Bxg4 {[%clk 0:00:15]}  f5 {[%clk 0:00:11]} 57. Be2 {[%clk 0:00:15]}  Kf4 {[%clk 0:00:11]} 58. Kg2 {[%clk 0:00:15]}  Ke3 {[%clk 0:00:11]} 59. Bh5 {[%clk 0:00:16]}  e5 {[%clk 0:00:11]} 60. Kf1 {[%clk 0:00:16]}  e4 {[%clk 0:00:12]} 61. Ke1 {[%clk 0:00:17]}  f4 {[%clk 0:00:12]} 62. Kf1 {[%clk 0:00:17]}  f3 {[%clk 0:00:12]} 63. Bg4 {[%clk 0:00:18]}  Nc4 {[%clk 0:00:12]} 64. Bh3 {[%clk 0:00:16]}  Nd2+ {[%clk 0:00:12]} 65. Kg1 {[%clk 0:00:15]}  f2+ {[%clk 0:00:12]} 66. Kh2 {[%clk 0:00:16]}  f1=Q {[%clk 0:00:12]} 67. Bxf1 {[%clk 0:00:16]}  Nxf1+ {[%clk 0:00:13]} 68. Kg2 {[%clk 0:00:17]}  Kd2 {[%clk 0:00:13]} 69. Kxf1 {[%clk 0:00:17]}  e3 {[%clk 0:00:13]} 70. Kg2 {[%clk 0:00:18]}  e2 {[%clk 0:00:14]} 71. Kf3 {[%clk 0:00:19]}  e1=Q {[%clk 0:00:15]} 72. Kg4 {[%clk 0:00:18]}  Qe5 {[%clk 0:00:15]} 73. Kf3 {[%clk 0:00:16]}  Kd3 {[%clk 0:00:14]} 74. Kg4 {[%clk 0:00:16]}  Qf6 {[%clk 0:00:15]} 75. Kg3 {[%clk 0:00:16]}  Ke4 {[%clk 0:00:14]} 76. Kg4 {[%clk 0:00:17]}  Qg7+ {[%clk 0:00:13]} 77. Kh4 {[%clk 0:00:18]}  Kf4 {[%clk 0:00:13]} 78. Kh5 {[%clk 0:00:18]}  Qh7# {[%clk 0:00:13]} 0-1


[Site "https://www.chess.com"]

[Event "Titled Tuesday Blitz December 27 Late 2022"]
[White "Szente Varga, Fruzsina"]
[Black "Khandelwal, Ankush"]
[WhiteFideId "712264"]
[BlackFideId "413470"]
[WhiteElo "2075"]
[BlackElo "2205"]
[Result "0-1"]
[Round "02"]
[TimeControl "180+2"]
[Date "2022.12.27"]
[WhiteClock "0:00:35"]
[BlackClock "0:00:21"]

1. e4 {[%clk 0:03:00]}  c5 {[%clk 0:02:46]} 2. Nf3 {[%clk 0:03:00]}  d6 {[%clk 0:02:46]} 3. d4 {[%clk 0:03:00]}  cxd4 {[%clk 0:02:47]} 4. Qxd4 {[%clk 0:03:00]}  Nc6 {[%clk 0:02:45]} 5. Bb5 {[%clk 0:03:00]}  a6 {[%clk 0:02:46]} 6. Bxc6+ {[%clk 0:03:00]}  bxc6 {[%clk 0:02:47]} 7. c4 {[%clk 0:03:00]}  e5 {[%clk 0:02:45]} 8. Qd3 {[%clk 0:02:59]}  Ne7 {[%clk 0:02:45]} 9. Nc3 {[%clk 0:02:59]}  Ng6 {[%clk 0:02:45]} 10. O-O {[%clk 0:02:58]}  Be7 {[%clk 0:02:46]} 11. b3 {[%clk 0:02:58]}  O-O {[%clk 0:02:45]} 12. Ba3 {[%clk 0:02:56]}  Qc7 {[%clk 0:02:39]} 13. Rad1 {[%clk 0:02:55]}  Rd8 {[%clk 0:02:40]} 14. Qe3 {[%clk 0:02:48]}  Nf4 {[%clk 0:02:31]} 15. Ne2 {[%clk 0:02:40]}  Qa5 {[%clk 0:02:12]} 16. Nxf4 {[%clk 0:02:28]}  exf4 {[%clk 0:02:00]} 17. Qc1 {[%clk 0:02:28]}  Bg4 {[%clk 0:02:00]} 18. Rd3 {[%clk 0:02:26]}  g5 {[%clk 0:01:35]} 19. Nd4 {[%clk 0:02:19]}  Rac8 {[%clk 0:01:27]} 20. h3 {[%clk 0:02:10]}  Bh5 {[%clk 0:01:27]} 21. Nf5 {[%clk 0:02:10]}  Bf8 {[%clk 0:01:26]} 22. Bxd6 {[%clk 0:02:02]}  Be2 {[%clk 0:01:21]} 23. b4 {[%clk 0:01:39]}  Qxa2 {[%clk 0:01:10]} 24. Ra3 {[%clk 0:01:39]}  Qxc4 {[%clk 0:01:10]} 25. Qxc4 {[%clk 0:01:39]}  Bxc4 {[%clk 0:01:11]} 26. Rc1 {[%clk 0:01:39]}  Bb5 {[%clk 0:00:58]} 27. Ne7+ {[%clk 0:01:33]}  Bxe7 {[%clk 0:00:54]} 28. Bxe7 {[%clk 0:01:34]}  Re8 {[%clk 0:00:53]} 29. Bxg5 {[%clk 0:01:33]}  Rxe4 {[%clk 0:00:54]} 30. Rb3 {[%clk 0:01:26]}  Rce8 {[%clk 0:00:31]} 31. Rc5 {[%clk 0:01:26]}  Rd4 {[%clk 0:00:22]} 32. Bf6 {[%clk 0:01:21]}  Rd1+ {[%clk 0:00:22]} 33. Kh2 {[%clk 0:01:21]}  h6 {[%clk 0:00:22]} 34. Rf5 {[%clk 0:01:17]}  Re4 {[%clk 0:00:20]} 35. Be5 {[%clk 0:01:15]}  Rd5 {[%clk 0:00:18]} 36. Rxf4 {[%clk 0:00:50]}  Rdxe5 {[%clk 0:00:16]} 37. Rg3+ {[%clk 0:00:50]}  Kf8 {[%clk 0:00:16]} 38. Rf6 {[%clk 0:00:50]}  Re6 {[%clk 0:00:16]} 39. Rf5 {[%clk 0:00:50]}  R4e5 {[%clk 0:00:17]} 40. Rf4 {[%clk 0:00:50]}  Re4 {[%clk 0:00:17]} 41. Rf5 {[%clk 0:00:50]}  Rxb4 {[%clk 0:00:18]} 42. Rgf3 {[%clk 0:00:44]}  Re7 {[%clk 0:00:18]} 43. Rf6 {[%clk 0:00:44]}  h5 {[%clk 0:00:19]} 44. Rh6 {[%clk 0:00:44]}  h4 {[%clk 0:00:18]} 45. Rf5 {[%clk 0:00:44]}  Ke8 {[%clk 0:00:18]} 46. Rh8+ {[%clk 0:00:44]}  Kd7 {[%clk 0:00:19]} 47. Rf3 {[%clk 0:00:41]}  a5 {[%clk 0:00:19]} 48. Rh6 {[%clk 0:00:39]}  a4 {[%clk 0:00:19]} 49. Rhf6 {[%clk 0:00:36]}  Rb3 {[%clk 0:00:20]} 50. R3f4 {[%clk 0:00:36]}  a3 {[%clk 0:00:20]} 51. Rd4+ {[%clk 0:00:36]}  Kc7 {[%clk 0:00:20]} 52. Rxh4 {[%clk 0:00:35]}  a2 {[%clk 0:00:21]} 0-1


[Site "https://www.chess.com"]

[Event "Titled Tuesday Blitz December 27 Late 2022"]
[White "Tatarinov, Dmitry"]
[Black "Rosenberg, Evan S"]
[WhiteFideId "24160067"]
[BlackFideId "2019299"]
[WhiteElo "2310"]
[BlackElo "1956"]
[Result "1-0"]
[Round "02"]
[TimeControl "180+2"]
[Date "2022.12.27"]
[WhiteClock "0:01:11"]
[BlackClock "0:00:02"]

1. e4 {[%clk 0:02:53]}  e5 {[%clk 0:02:59]} 2. Nf3 {[%clk 0:02:53]}  Nc6 {[%clk 0:03:00]} 3. Bb5 {[%clk 0:02:54]}  Nf6 {[%clk 0:03:00]} 4. d3 {[%clk 0:02:54]}  Ne7 {[%clk 0:03:00]} 5. O-O {[%clk 0:02:50]}  c6 {[%clk 0:02:59]} 6. Ba4 {[%clk 0:02:50]}  Ng6 {[%clk 0:03:00]} 7. Re1 {[%clk 0:02:47]}  Be7 {[%clk 0:03:00]} 8. Nbd2 {[%clk 0:02:44]}  O-O {[%clk 0:03:00]} 9. Nf1 {[%clk 0:02:44]}  d6 {[%clk 0:02:55]} 10. Ng3 {[%clk 0:02:45]}  Re8 {[%clk 0:02:39]} 11. c3 {[%clk 0:02:43]}  Qc7 {[%clk 0:02:34]} 12. h3 {[%clk 0:02:43]}  d5 {[%clk 0:02:29]} 13. exd5 {[%clk 0:02:39]}  Nxd5 {[%clk 0:02:29]} 14. Bb3 {[%clk 0:02:32]}  Ndf4 {[%clk 0:02:23]} 15. d4 {[%clk 0:02:31]}  exd4 {[%clk 0:01:52]} 16. Nxd4 {[%clk 0:02:29]}  Bxh3 {[%clk 0:01:00]} 17. gxh3 {[%clk 0:02:27]}  Nxh3+ {[%clk 0:01:01]} 18. Kf1 {[%clk 0:02:22]}  Rad8 {[%clk 0:00:55]} 19. Qg4 {[%clk 0:02:16]}  Nhf4 {[%clk 0:00:45]} 20. Re4 {[%clk 0:02:08]}  Nd5 {[%clk 0:00:11]} 21. Ngf5 {[%clk 0:02:07]}  Nf6 {[%clk 0:00:09]} 22. Nxe7+ {[%clk 0:01:29]}  Rxe7 {[%clk 0:00:09]} 23. Rxe7 {[%clk 0:01:28]}  Qxe7 {[%clk 0:00:10]} 24. Qf3 {[%clk 0:01:26]}  Re8 {[%clk 0:00:07]} 25. Bg5 {[%clk 0:01:25]}  Qe5 {[%clk 0:00:04]} 26. Bxf6 {[%clk 0:01:22]}  gxf6 {[%clk 0:00:05]} 27. Nf5 {[%clk 0:01:20]}  Qh2 {[%clk 0:00:03]} 28. Rd1 {[%clk 0:01:15]}  Nf4 {[%clk 0:00:03]} 29. Qg3+ {[%clk 0:01:12]}  Qxg3 {[%clk 0:00:03]} 30. fxg3 {[%clk 0:01:12]}  Ne2 {[%clk 0:00:02]} 31. Rd7 {[%clk 0:01:11]} 1-0


[Site "https://www.chess.com"]

[Event "Titled Tuesday Blitz December 27 Late 2022"]
[White "Toncheva, Nadya"]
[Black "Rose, Felix"]
[WhiteFideId "2924056"]
[BlackFideId "5105722"]
[WhiteElo "2295"]
[BlackElo "2091"]
[Result "1-0"]
[Round "02"]
[TimeControl "180+2"]
[Date "2022.12.27"]
[WhiteClock "0:00:13"]
[BlackClock "0:00:05"]

1. e4 {[%clk 0:02:52]}  c5 {[%clk 0:02:58]} 2. Nf3 {[%clk 0:02:52]}  e6 {[%clk 0:02:58]} 3. c3 {[%clk 0:02:52]}  Nf6 {[%clk 0:02:57]} 4. e5 {[%clk 0:02:52]}  Nd5 {[%clk 0:02:57]} 5. Bc4 {[%clk 0:02:52]}  Nb6 {[%clk 0:02:56]} 6. Bb3 {[%clk 0:02:53]}  c4 {[%clk 0:02:56]} 7. Bc2 {[%clk 0:02:53]}  d5 {[%clk 0:02:56]} 8. exd6 {[%clk 0:02:53]}  Bxd6 {[%clk 0:02:54]} 9. O-O {[%clk 0:02:53]}  Nc6 {[%clk 0:02:53]} 10. d4 {[%clk 0:02:54]}  cxd3 {[%clk 0:02:53]} 11. Qxd3 {[%clk 0:02:54]}  Be7 {[%clk 0:02:52]} 12. Qe4 {[%clk 0:02:43]}  Qd5 {[%clk 0:02:51]} 13. Qe2 {[%clk 0:02:39]}  O-O {[%clk 0:02:50]} 14. Rd1 {[%clk 0:02:39]}  Qh5 {[%clk 0:02:49]} 15. Bf4 {[%clk 0:02:31]}  e5 {[%clk 0:02:46]} 16. Bxe5 {[%clk 0:02:19]}  Nxe5 {[%clk 0:02:39]} 17. Qxe5 {[%clk 0:02:19]}  Qxe5 {[%clk 0:02:36]} 18. Nxe5 {[%clk 0:02:19]}  Bf6 {[%clk 0:02:36]} 19. Nf3 {[%clk 0:02:09]}  Bg4 {[%clk 0:02:35]} 20. Nbd2 {[%clk 0:02:05]}  a5 {[%clk 0:02:33]} 21. h3 {[%clk 0:02:04]}  Be6 {[%clk 0:02:30]} 22. Ne4 {[%clk 0:02:02]}  Be7 {[%clk 0:02:28]} 23. Neg5 {[%clk 0:01:55]}  Kh8 {[%clk 0:02:04]} 24. Nxh7 {[%clk 0:01:47]}  Rfd8 {[%clk 0:01:56]} 25. Nhg5 {[%clk 0:01:45]}  Nc4 {[%clk 0:01:44]} 26. Nxe6 {[%clk 0:01:43]}  fxe6 {[%clk 0:01:43]} 27. b3 {[%clk 0:01:39]}  Na3 {[%clk 0:01:42]} 28. Bg6 {[%clk 0:01:37]}  Bf6 {[%clk 0:01:41]} 29. Nd4 {[%clk 0:01:26]}  e5 {[%clk 0:01:27]} 30. Ne2 {[%clk 0:01:17]}  Kg8 {[%clk 0:01:19]} 31. g3 {[%clk 0:01:06]}  Kf8 {[%clk 0:01:18]} 32. Kg2 {[%clk 0:01:05]}  Ke7 {[%clk 0:01:15]} 33. h4 {[%clk 0:01:06]}  b5 {[%clk 0:01:11]} 34. Be4 {[%clk 0:01:02]}  Rac8 {[%clk 0:01:11]} 35. Kf3 {[%clk 0:00:58]}  Ke6 {[%clk 0:00:52]} 36. h5 {[%clk 0:00:54]}  a4 {[%clk 0:00:38]} 37. g4 {[%clk 0:00:51]}  Bg5 {[%clk 0:00:35]} 38. Bf5+ {[%clk 0:00:49]}  Ke7 {[%clk 0:00:29]} 39. Bxc8 {[%clk 0:00:48]}  Rxc8 {[%clk 0:00:29]} 40. Rd5 {[%clk 0:00:43]}  Ke6 {[%clk 0:00:26]} 41. Rad1 {[%clk 0:00:43]}  Rc6 {[%clk 0:00:23]} 42. Rd7 {[%clk 0:00:37]}  Bf6 {[%clk 0:00:22]} 43. Ra7 {[%clk 0:00:33]}  Nc2 {[%clk 0:00:18]} 44. bxa4 {[%clk 0:00:30]}  bxa4 {[%clk 0:00:19]} 45. Rxa4 {[%clk 0:00:30]}  Bg5 {[%clk 0:00:07]} 46. Ra8 {[%clk 0:00:26]}  Ke7 {[%clk 0:00:06]} 47. Ra7+ {[%clk 0:00:25]}  Ke6 {[%clk 0:00:06]} 48. a4 {[%clk 0:00:24]}  Bf6 {[%clk 0:00:06]} 49. a5 {[%clk 0:00:24]}  Na3 {[%clk 0:00:06]} 50. a6 {[%clk 0:00:22]}  Nb5 {[%clk 0:00:07]} 51. Rb7 {[%clk 0:00:22]}  Nxc3 {[%clk 0:00:04]} 52. Nxc3 {[%clk 0:00:22]}  Rxc3+ {[%clk 0:00:05]} 53. Kg2 {[%clk 0:00:22]}  Ra3 {[%clk 0:00:05]} 54. a7 {[%clk 0:00:22]}  e4 {[%clk 0:00:05]} 55. Rdb1 {[%clk 0:00:20]}  Ra2 {[%clk 0:00:05]} 56. R1b6+ {[%clk 0:00:19]}  Kd5 {[%clk 0:00:05]} 57. Rb5+ {[%clk 0:00:16]}  Kc4 {[%clk 0:00:06]} 58. Kg3 {[%clk 0:00:14]}  Be5+ {[%clk 0:00:05]} 59. Rxe5 {[%clk 0:00:14]}  e3 {[%clk 0:00:05]} 60. Rxe3 {[%clk 0:00:13]} 1-0


[Site "https://www.chess.com"]

[Event "Titled Tuesday Blitz December 27 Late 2022"]
[White "Torres Boch, Jose Francisco"]
[Black "Pinheiro, Iung Alicio de O."]
[WhiteFideId "2278383"]
[BlackFideId "2104350"]
[WhiteElo "2180"]
[BlackElo "2306"]
[Result "1-0"]
[Round "02"]
[TimeControl "180+2"]
[Date "2022.12.27"]
[WhiteClock "0:00:13"]
[BlackClock "0:00:03"]

1. e4 {[%clk 0:03:00]}  c5 {[%clk 0:02:55]} 2. Nf3 {[%clk 0:03:00]}  Nc6 {[%clk 0:02:55]} 3. d4 {[%clk 0:03:00]}  cxd4 {[%clk 0:02:55]} 4. Nxd4 {[%clk 0:03:01]}  e5 {[%clk 0:02:55]} 5. Nb5 {[%clk 0:03:01]}  d6 {[%clk 0:02:55]} 6. N1c3 {[%clk 0:03:00]}  a6 {[%clk 0:02:55]} 7. Na3 {[%clk 0:03:01]}  b5 {[%clk 0:02:56]} 8. Nd5 {[%clk 0:03:01]}  Nge7 {[%clk 0:02:57]} 9. c4 {[%clk 0:02:52]}  Nxd5 {[%clk 0:02:55]} 10. cxd5 {[%clk 0:02:49]}  Nd4 {[%clk 0:02:54]} 11. Nc2 {[%clk 0:02:47]}  Bg4 {[%clk 0:02:51]} 12. f3 {[%clk 0:02:39]}  Qh4+ {[%clk 0:02:51]} 13. Kd2 {[%clk 0:02:19]}  Qf2+ {[%clk 0:02:40]} 14. Be2 {[%clk 0:02:14]}  Nxc2 {[%clk 0:02:36]} 15. Kxc2 {[%clk 0:02:07]}  Rc8+ {[%clk 0:02:35]} 16. Kb1 {[%clk 0:02:06]}  Bd7 {[%clk 0:02:34]} 17. Qf1 {[%clk 0:01:59]}  Qc5 {[%clk 0:02:24]} 18. a3 {[%clk 0:01:51]}  b4 {[%clk 0:01:35]} 19. axb4 {[%clk 0:01:39]}  Qc2+ {[%clk 0:01:31]} 20. Ka2 {[%clk 0:01:39]}  Be7 {[%clk 0:00:41]} 21. Bd3 {[%clk 0:01:36]}  Qa4+ {[%clk 0:00:38]} 22. Kb1 {[%clk 0:01:36]}  Qxb4 {[%clk 0:00:38]} 23. Qe1 {[%clk 0:01:33]}  Qb8 {[%clk 0:00:36]} 24. Rxa6 {[%clk 0:01:21]}  O-O {[%clk 0:00:35]} 25. Qa5 {[%clk 0:01:18]}  Rc5 {[%clk 0:00:33]} 26. Qb6 {[%clk 0:01:16]}  Qc8 {[%clk 0:00:33]} 27. Be3 {[%clk 0:01:14]}  Rc4 {[%clk 0:00:26]} 28. Rc1 {[%clk 0:01:08]}  Rxc1+ {[%clk 0:00:26]} 29. Bxc1 {[%clk 0:01:09]}  f5 {[%clk 0:00:21]} 30. Ra7 {[%clk 0:01:06]}  fxe4 {[%clk 0:00:20]} 31. Bxe4 {[%clk 0:01:04]}  Bf6 {[%clk 0:00:19]} 32. Qxd6 {[%clk 0:01:01]}  Bf5 {[%clk 0:00:19]} 33. Bxf5 {[%clk 0:00:59]}  Qxf5+ {[%clk 0:00:20]} 34. Ka2 {[%clk 0:00:58]}  Qc2 {[%clk 0:00:18]} 35. Qc6 {[%clk 0:00:55]}  Rc8 {[%clk 0:00:13]} 36. Qxc2 {[%clk 0:00:51]}  Rxc2 {[%clk 0:00:14]} 37. Be3 {[%clk 0:00:43]}  e4 {[%clk 0:00:14]} 38. Rb7 {[%clk 0:00:39]}  exf3 {[%clk 0:00:14]} 39. gxf3 {[%clk 0:00:39]}  Rxh2 {[%clk 0:00:14]} 40. d6 {[%clk 0:00:38]}  Re2 {[%clk 0:00:14]} 41. Bb6 {[%clk 0:00:38]}  Rd2 {[%clk 0:00:14]} 42. Bc7 {[%clk 0:00:37]}  Kf7 {[%clk 0:00:13]} 43. Ka3 {[%clk 0:00:36]}  Ke6 {[%clk 0:00:14]} 44. b4 {[%clk 0:00:36]}  h5 {[%clk 0:00:14]} 45. Rb5 {[%clk 0:00:34]}  g6 {[%clk 0:00:13]} 46. Rc5 {[%clk 0:00:29]}  h4 {[%clk 0:00:13]} 47. Rc1 {[%clk 0:00:28]}  h3 {[%clk 0:00:13]} 48. Rh1 {[%clk 0:00:28]}  h2 {[%clk 0:00:13]} 49. d7 {[%clk 0:00:28]}  Rxd7 {[%clk 0:00:12]} 50. Bxh2 {[%clk 0:00:27]}  Rd3+ {[%clk 0:00:12]} 51. Ka4 {[%clk 0:00:27]}  Rxf3 {[%clk 0:00:13]} 52. b5 {[%clk 0:00:27]}  Kd5 {[%clk 0:00:14]} 53. b6 {[%clk 0:00:27]}  Kc6 {[%clk 0:00:14]} 54. Bc7 {[%clk 0:00:22]}  Be7 {[%clk 0:00:13]} 55. Ra1 {[%clk 0:00:19]}  g5 {[%clk 0:00:12]} 56. Ka5 {[%clk 0:00:19]}  Kb7 {[%clk 0:00:10]} 57. Kb5 {[%clk 0:00:19]}  g4 {[%clk 0:00:10]} 58. Ra7+ {[%clk 0:00:19]}  Kc8 {[%clk 0:00:09]} 59. Ra8+ {[%clk 0:00:17]}  Kd7 {[%clk 0:00:09]} 60. Rg8 {[%clk 0:00:17]}  Rb3+ {[%clk 0:00:07]} 61. Ka6 {[%clk 0:00:17]}  Kc6 {[%clk 0:00:06]} 62. Rg6+ {[%clk 0:00:13]}  Kd7 {[%clk 0:00:06]} 63. Rxg4 {[%clk 0:00:14]}  Bc5 {[%clk 0:00:06]} 64. Kb7 {[%clk 0:00:12]}  Bxb6 {[%clk 0:00:04]} 65. Bxb6 {[%clk 0:00:12]}  Rb1 {[%clk 0:00:05]} 66. Rd4+ {[%clk 0:00:13]}  Ke6 {[%clk 0:00:05]} 67. Kc6 {[%clk 0:00:14]}  Ke5 {[%clk 0:00:06]} 68. Bc5 {[%clk 0:00:14]}  Rc1 {[%clk 0:00:06]} 69. Rd2 {[%clk 0:00:14]}  Rc3 {[%clk 0:00:05]} 70. Re2+ {[%clk 0:00:14]}  Kf5 {[%clk 0:00:04]} 71. Kd5 {[%clk 0:00:15]}  Rc1 {[%clk 0:00:05]} 72. Rf2+ {[%clk 0:00:15]}  Kg4 {[%clk 0:00:05]} 73. Be3 {[%clk 0:00:15]}  Ra1 {[%clk 0:00:04]} 74. Ke4 {[%clk 0:00:15]}  Ra4+ {[%clk 0:00:05]} 75. Bd4 {[%clk 0:00:15]}  Rb4 {[%clk 0:00:05]} 76. Rg2+ {[%clk 0:00:16]}  Kh3 {[%clk 0:00:05]} 77. Rg7 {[%clk 0:00:16]}  Ra4 {[%clk 0:00:05]} 78. Kf3 {[%clk 0:00:16]}  Kh4 {[%clk 0:00:04]} 79. Be3 {[%clk 0:00:16]}  Kh5 {[%clk 0:00:02]} 80. Rg5+ {[%clk 0:00:15]}  Kh4 {[%clk 0:00:03]} 81. Rg6 {[%clk 0:00:13]} 1-0


[Site "https://www.chess.com"]